bitfinex/quotes_SOLUSD_20240727
["timestamp","ask_amount","ask_price","bid_price","bid_amount"]
[1722109202109,5.5154,181.31,181.23,13.7939]
[1722109202612,5.5151,181.32,181.26,5.5168]
[1722109202911,5.5151,181.32,181.19,15.8510185]
[1722109202912,20.0,181.22,181.19,0.7653185]
[1722109203112,21.3458,181.3,181.19,0.7653185]
[1722109203113,20.0,181.25,181.19,0.7653185]
[1722109203316,5.5172,181.26,181.19,0.7653185]
[1722109203490,5.5165,181.28,181.19,0.7653185]
[1722109203992,5.5158,181.3,181.19,0.7653185]
[1722109204185,5.516,181.29,181.19,0.7653185]
[1722109204603,5.5154,181.31,181.19,21.9253185]
[1722109204912,5.515,181.33,181.2,45.0]
[1722109205087,5.5145,181.34,181.22,21.16]
[1722109205287,5.5145,181.34,181.23,45.0]
[1722109205501,5.5151,181.32,181.23,45.0]
[1722109205702,5.5151,181.32,181.22,45.0]
[1722109205922,20.0,181.36,181.22,45.0]
[1722109205923,5.5148,181.33,181.22,45.0]
[1722109206108,20.0,181.36,181.21,21.16]
[1722109206312,20.0,181.36,181.22,45.0]
[1722109206507,20.0,181.36,181.21,21.16]
[1722109206711,5.5154,181.31,181.21,21.16]
[1722109206911,5.5154,181.31,181.22,45.0]
[1722109207115,20.0,181.34,181.19,0.7653185]
[1722109207116,5.5162,181.29,181.19,0.7653185]
[1722109207718,20.0,181.32,181.19,0.7653185]
[1722109208327,5.5161,181.29,181.19,0.7653185]
[1722109209239,5.5161,181.29,181.19,45.7653185]
[1722109210626,5.5155,181.31,181.19,45.7653185]
[1722109211139,20.0,181.43,181.24,21.16]
[1722109211140,5.5144,181.35,181.24,21.16]
[1722109211307,20.0,181.37,181.24,21.16]
[1722109211510,5.5148,181.33,181.24,21.16]
[1722109211729,25.5138,181.37,181.25,22.5291]
[1722109211930,5.74675471,181.38,181.26,45.0]
[1722109212533,5.5139,181.36,181.27,21.16]
[1722109212716,25.74675471,181.38,181.26,45.0]
[1722109212717,5.5138,181.37,181.26,45.0]
[1722109213033,20.0,181.36,181.25,22.5291]
[1722109213235,5.5148,181.33,181.25,22.5291]
[1722109213435,20.0,181.34,181.25,22.5291]
[1722109213609,33.785,181.36,181.25,22.5291]
[1722109213936,5.5159,181.3,181.25,16.1144]
[1722109214143,20.0,181.33,181.25,16.1144]
[1722109214313,20.0,181.31,181.19,16.8797185]
[1722109214834,5.5173,181.25,181.19,16.8797185]
[1722109215138,5.5187,181.21,181.19,0.7653185]
[1722109215547,20.0,181.2,181.19,0.7653185]
[1722109215718,5.5187,181.21,181.19,0.7653185]
[1722109216221,20.0,181.2,181.19,0.7653185]
[1722109216610,5.5199,181.17,181.1,16.1144]
[1722109217236,5.5204,181.15,181.07,6.4147]
[1722109217837,0.96206478,181.17,181.07,6.4147]
[1722109218437,5.521,181.13,181.05,16.1144]
[1722109218613,20.96206478,181.17,181.05,16.1144]
[1722109219013,0.96206478,181.17,181.05,16.1144]
[1722109219318,20.0,181.13,181.01,0.7653185]
[1722109219536,20.0,181.15,181.01,0.7653185]
[1722109219835,5.521,181.13,181.01,0.7653185]
[1722109220011,5.5216,181.11,181.01,0.7653185]
[1722109220535,5.5218,181.1,181.01,0.7653185]
[1722109221241,5.5221,181.09,181.01,0.7653185]
[1722109221654,20.0,181.08,181.01,0.7653185]
[1722109221813,6.2224,181.09,181.01,0.7653185]
[1722109222018,20.0,181.1,181.01,0.7653185]
[1722109222241,20.0,181.12,181.01,0.7653185]
[1722109222422,20.0,181.1,181.01,0.7653185]
[1722109222741,5.5224,181.08,181.01,0.7653185]
[1722109222915,20.0,181.12,181.01,0.7653185]
[1722109223319,20.0,181.1,181.01,0.7653185]
[1722109223523,5.5224,181.09,181.01,0.7653185]
[1722109223742,20.0,181.08,181.01,0.7653185]
[1722109224039,20.0,181.12,181.01,0.7653185]
[1722109224246,5.5215,181.11,181.01,0.7653185]
[1722109224446,20.0,181.12,181.01,0.7653185]
[1722109224635,20.0,181.16,181.02,6.4147]
[1722109224944,0.96206478,181.17,181.07,23.99]
[1722109225128,5.5177,181.24,181.08,45.34]
[1722109225333,0.96146763,181.22,181.08,45.34]
[1722109227024,5.5187,181.21,181.08,45.0]
[1722109227229,5.5189,181.2,181.08,45.0]
[1722109227637,0.96146763,181.22,181.08,45.0]
[1722109227838,6.47956763,181.22,181.08,45.0]
[1722109228035,5.5187,181.2,181.08,45.0]
[1722109228827,0.96146763,181.22,181.08,45.0]
[1722109229040,0.96146763,181.22,181.09,0.17]
[1722109229356,0.96146763,181.22,181.08,46.64954751]
[1722109229928,5.5188,181.2,181.08,46.64954751]
[1722109230749,6.47986763,181.22,181.08,46.64954751]
[1722109230924,0.96146763,181.22,181.08,46.64954751]
[1722109231628,5.5193,181.19,181.08,46.64954751]
[1722109231940,0.96146763,181.22,181.08,46.64954751]
[1722109232828,5.5191,181.19,181.08,46.64954751]
[1722109233026,5.5194,181.18,181.08,46.64954751]
[1722109233523,20.0,181.21,181.08,1.64954751]
[1722109233744,0.96146763,181.22,181.07,23.99]
[1722109234136,5.5184,181.21,181.08,0.17]
[1722109234645,5.5188,181.2,181.08,0.17]
[1722109234858,5.5193,181.18,181.08,45.17]
[1722109235151,5.519,181.2,181.08,45.0]
[1722109235455,20.0,181.21,181.07,23.99]
[1722109235637,5.5197,181.17,181.03,40.1044]
[1722109235843,5.5189,181.2,181.04,1.98991197]
[1722109236152,20.0,181.21,181.04,1.98991197]
[1722109236355,5.5196,181.18,181.04,1.98991197]
[1722109236557,5.5188,181.2,181.05,1.64982084]
[1722109236861,5.5188,181.2,181.06,0.34]
[1722109237355,5.519,181.19,181.06,0.34]
[1722109237934,5.519,181.19,181.06,1.98972972]
[1722109239153,5.519,181.19,181.08,21.32]
[1722109239327,5.519,181.19,181.09,45.0]
[1722109240544,0.96146763,181.22,181.09,45.0]
[1722109240545,5.5186,181.21,181.09,45.0]
[1722109241435,5.5187,181.2,181.09,45.0]
[1722109241635,5.5187,181.2,181.11,21.32]
[1722109243137,5.519,181.19,181.11,21.32]
[1722109243647,5.5187,181.2,181.11,21.32]
[1722109243965,5.5187,181.2,181.12,16.5923]
[1722109244353,5.5191,181.19,181.12,16.5923]
[1722109244863,5.5194,181.18,181.12,16.5923]
[1722109245672,5.519,181.19,181.12,16.5923]
[1722109246370,5.5209,181.13,181.09,16.5923]
[1722109246680,20.0,181.2,181.09,16.5923]
[1722109246681,5.5203,181.15,181.09,16.5923]
[1722109246859,5.5206,181.14,181.09,16.5923]
[1722109247451,20.96075295,181.18,181.09,16.5923]
[1722109247650,5.5203,181.15,181.09,16.5923]
[1722109247852,5.52,181.16,181.09,16.5923]
[1722109248244,0.96075295,181.18,181.09,16.5923]
[1722109248661,25.73544834,181.24,181.1,45.0]
[1722109248866,0.96070657,181.2,181.1,45.0]
[1722109249045,20.0,181.22,181.1,45.0]
[1722109249371,0.96070624,181.2,181.09,16.5923]
[1722109249675,5.5193,181.19,181.09,16.5923]
[1722109250170,5.5195,181.18,181.09,16.5923]
[1722109250541,20.0,181.19,181.09,16.5923]
[1722109250749,20.0,181.15,181.02,6.4147]
[1722109251048,20.0,181.15,181.03,15.5417]
[1722109251049,5.5212,181.12,181.03,15.5417]
[1722109251769,20.0,181.13,181.03,15.5417]
[1722109252163,20.0,181.09,181.01,0.7653185]
[1722109252669,5.5224,181.09,181.01,0.7653185]
[1722109253455,20.0,181.12,181.01,0.7653185]
[1722109253652,20.0,181.14,181.01,0.7653185]
[1722109254192,5.5219,181.1,181.01,0.7653185]
[1722109254760,5.5221,181.09,181.01,0.7653185]
[1722109255659,5.5216,181.11,181.01,0.7653185]
[1722109255969,20.0,181.12,181.01,0.7653185]
[1722109256275,5.5224,181.08,181.01,0.7653185]
[1722109258561,5.5221,181.09,181.01,0.7653185]
[1722109259754,20.0,181.12,181.01,0.7653185]
[1722109259968,50.0,181.07,181.01,0.7653185]
[1722109260166,55.5229,181.07,181.01,0.7653185]
[1722109260367,30.0,181.07,181.01,0.7653185]
[1722109260563,20.0,181.12,181.01,0.7653185]
[1722109260760,25.5208,181.14,181.01,0.7653185]
[1722109260974,20.0,181.14,181.01,0.7653185]
[1722109261280,5.5226,181.08,181.01,0.7653185]
[1722109261875,5.5222,181.09,181.01,0.7653185]
[1722109262049,20.0,181.12,181.01,0.7653185]
[1722109262050,5.5217,181.11,181.01,0.7653185]
[1722109262465,5.5224,181.08,181.01,0.7653185]
[1722109262664,5.5227,181.07,181.01,0.7653185]
[1722109263081,5.5222,181.09,181.01,0.7653185]
[1722109263257,20.0,181.12,181.01,0.7653185]
[1722109263580,65.0,181.11,181.01,0.7653185]
[1722109263752,5.5214,181.12,181.01,0.7653185]
[1722109263961,5.5209,181.13,181.02,21.32]
[1722109264261,5.75779478,181.15,181.02,21.32]
[1722109264574,5.5206,181.14,181.03,45.0]
[1722109264969,5.5202,181.16,181.03,45.0]
[1722109265275,20.0,181.17,181.04,15.1741]
[1722109265465,5.5203,181.15,181.05,45.0]
[1722109265671,5.52,181.16,181.05,66.32]
[1722109265889,5.52,181.16,181.06,6.1861]
[1722109266258,5.5204,181.15,181.06,6.1861]
[1722109266480,20.0,181.15,181.06,6.1861]
[1722109266695,5.5209,181.13,181.06,6.1861]
[1722109266973,5.5212,181.12,181.06,6.1861]
[1722109267174,5.5218,181.1,181.04,15.1741]
[1722109267384,5.5214,181.12,181.04,15.1741]
[1722109267557,20.0,181.13,181.04,15.1741]
[1722109267759,5.5218,181.1,181.04,15.1741]
[1722109267961,5.5221,181.09,181.04,15.1741]
[1722109268270,20.0,181.11,181.04,15.1741]
[1722109269066,20.0,181.11,181.01,6.9514185]
[1722109269262,20.0,181.09,181.01,6.9514185]
[1722109269510,20.0,181.09,181.01,0.7653185]
[1722109269871,5.5274,180.92,180.91,15.1741]
[1722109270020,0.66972794,180.98,180.91,15.1741]
[1722109270188,5.5273,180.92,180.91,15.1741]
[1722109270387,7.17677919,180.92,180.91,15.1741]
[1722109270889,5.5293,180.86,180.7,6.1861]
[1722109271063,7.17887919,180.85,180.72,2.18801296]
[1722109271273,7.17887919,180.85,180.65,0.7653185]
[1722109271274,21.64947919,180.84,180.65,0.7653185]
[1722109271465,21.64947919,180.84,180.83,0.2653185]
[1722109271667,5.5317,180.78,180.65,0.7653185]
[1722109271869,1.64947919,180.77,180.65,0.7653185]
[1722109272192,20.0,180.74,180.65,0.7653185]
[1722109272361,24.08,180.82,180.65,0.7653185]
[1722109272362,20.0,180.72,180.65,0.7653185]
[1722109272563,1.64947919,180.71,180.65,0.7653185]
[1722109272895,21.64947919,180.71,180.65,0.7653185]
[1722109273093,5.5351,180.67,180.65,0.7653185]
[1722109273272,1.64947919,180.66,180.65,0.7653185]
[1722109273669,5.5363,180.63,180.48,0.7653185]
[1722109273868,1.64947919,180.62,180.48,0.7653185]
[1722109274071,1.64947919,180.62,180.52,24.08]
[1722109274270,5.5388,180.55,180.48,0.7653185]
[1722109274565,20.0,180.63,180.48,0.7653185]
[1722109274566,20.0,180.61,180.48,0.7653185]
[1722109274970,20.0,180.59,180.5,24.08]
[1722109275165,20.0,180.59,180.48,0.7653185]
[1722109275379,20.0,180.63,180.51,24.08]
[1722109275581,20.0,180.63,180.55,24.08]
[1722109275770,20.0,180.63,180.51,24.08]
[1722109275771,1.64947919,180.63,180.51,24.08]
[1722109275977,1.64947919,180.62,180.48,0.7653185]
[1722109276174,1.64947919,180.62,180.61,24.08]
[1722109276366,20.0,180.73,180.61,24.08]
[1722109276570,5.5318,180.78,180.61,24.08]
[1722109276774,25.75950758,180.77,180.61,24.08]
[1722109276986,5.5308,180.81,180.61,24.08]
[1722109276987,20.0,180.81,180.69,24.08]
[1722109277293,1.64947919,180.8,180.7,65.0]
[1722109277588,20.0,180.77,180.7,45.0]
[1722109277772,20.0,180.77,180.68,24.08]
[1722109277773,1.64947919,180.76,180.69,45.0]
[1722109277977,20.0,180.75,180.69,45.0]
[1722109278281,1.64947919,180.74,180.69,45.0]
[1722109278587,20.0,180.84,180.72,24.08]
[1722109278788,20.0,180.84,180.73,45.0]
[1722109278974,22.7994,180.93,180.73,45.0]
[1722109278975,20.0,180.86,180.73,45.0]
[1722109279178,20.0,180.83,180.73,45.0]
[1722109279483,6.5215,180.93,180.73,45.0]
[1722109279484,20.0,180.85,180.73,45.0]
[1722109279790,2.16929024,181.0,180.73,45.0]
[1722109279791,20.0,180.9,180.73,44.0]
[1722109280089,20.0,180.92,180.77,29.42]
[1722109280398,1.64947919,180.91,180.78,20.0]
[1722109280895,1.64947919,180.91,180.79,0.34]
[1722109281072,1.64947919,180.91,180.81,29.42]
[1722109281281,1.64947919,180.91,180.82,20.0]
[1722109281868,1.64947919,180.91,180.83,45.0]
[1722109283275,20.0,180.98,180.84,20.0]
[1722109283472,20.0,180.96,180.85,45.0]
[1722109283773,20.0,180.98,180.85,45.0]
[1722109284177,20.0,181.0,180.85,45.0]
[1722109284481,20.0,181.01,180.86,20.17]
[1722109284683,20.0,181.01,180.87,45.0]
[1722109284990,20.0,181.03,180.88,20.0]
[1722109285186,20.0,181.01,180.89,45.0]
[1722109285571,20.0,181.03,180.89,45.0]
[1722109285779,20.0,181.01,180.89,45.0]
[1722109285975,20.0,181.02,180.89,45.0]
[1722109286176,20.0,181.04,180.89,45.0]
[1722109286394,15.19470585,181.08,180.89,45.0]
[1722109286395,20.0,181.01,180.89,45.0]
[1722109286578,20.0,180.99,180.89,45.0]
[1722109286780,5.5255,180.98,180.75,6.4762]
[1722109286997,20.0,181.0,180.82,20.0]
[1722109287916,20.0,180.97,180.82,20.0]
[1722109288197,20.0,181.01,180.82,20.0]
[1722109288580,20.0,181.01,180.83,16.57]
[1722109288774,20.0,181.01,180.84,20.0]
[1722109289199,20.0,181.01,180.85,0.34]
[1722109289402,20.0,181.01,180.85,45.34]
[1722109289700,20.0,181.04,180.86,20.0]
[1722109289889,15.19470585,181.08,180.86,20.0]
[1722109289890,20.0,181.06,180.87,45.34]
[1722109290093,20.0,181.06,180.88,20.0]
[1722109290402,20.0,181.06,180.89,45.34]
[1722109290571,1.64947919,181.05,180.9,20.0]
[1722109290775,1.64947919,181.05,180.91,74.76]
[1722109290974,1.64947919,181.05,180.92,20.0]
[1722109291207,1.64947919,181.05,180.93,45.17]
[1722109291380,1.64947919,181.05,180.94,20.0]
[1722109291577,1.64947919,181.05,180.95,45.0]
[1722109292902,1.64947919,181.05,180.96,20.0]
[1722109293098,1.64947919,181.05,180.75,6.4762]
[1722109293408,20.0,181.01,180.79,29.42]
[1722109293614,20.0,180.96,180.79,29.42]
[1722109293900,20.0,180.94,180.75,6.4762]
[1722109294109,1.64947919,180.93,180.75,6.4762]
[1722109294493,20.0,180.92,180.75,23.0462]
[1722109294799,1.64947919,180.91,180.75,23.0462]
[1722109296001,1.64947919,180.91,180.75,6.4762]
[1722109296183,25.5279,180.9,180.75,6.4762]
[1722109296379,20.0,180.9,180.75,6.4762]
[1722109296586,20.0,180.88,180.75,6.4762]
[1722109296793,7.17827919,180.87,180.73,16.2626]
[1722109297003,20.0,180.85,180.73,16.2626]
[1722109297506,1.64947919,180.84,180.73,16.2626]
[1722109297708,1.64947919,180.84,180.58,20.0]
[1722109297709,1.64947919,180.84,180.51,16.2626]
[1722109297889,20.0,180.83,180.65,29.42]
[1722109298090,1.64947919,180.82,180.7,29.42]
[1722109299106,20.0,180.76,180.66,16.2626]
[1722109299304,7.18207919,180.75,180.66,16.2626]
[1722109299806,1.64947919,180.74,180.6,29.42]
[1722109301505,1.64947919,180.74,180.6,45.99]
[1722109301801,5.5316,180.78,180.6,45.99]
[1722109302009,1.64947919,180.78,180.6,45.99]
[1722109302203,20.0,180.76,180.6,29.42]
[1722109302405,8.68349418,180.74,180.6,29.42]
[1722109303189,8.68349418,180.74,180.61,16.57]
[1722109303718,8.68349418,180.74,180.6,29.42]
[1722109303889,8.68349418,180.74,180.61,65.17]
[1722109305287,8.68349418,180.74,180.62,0.17]
[1722109305486,5.5338,180.71,180.58,36.0377]
[1722109305712,20.0,180.72,180.58,36.0377]
[1722109305922,5.534,180.7,180.58,36.0377]
[1722109306097,1.64947919,180.71,180.58,36.0377]
[1722109306298,1.64947919,180.71,180.58,52.6077]
[1722109306600,8.68349418,180.74,180.58,52.6077]
[1722109306806,14.21639418,180.74,180.58,52.6077]
[1722109307011,5.5343,180.69,180.58,36.0377]
[1722109307214,5.5337,180.71,180.59,0.17]
[1722109307509,8.68349418,180.74,180.58,6.6177]
[1722109307711,1.64947919,180.7,180.58,6.6177]
[1722109308217,20.0,180.68,180.57,16.2626]
[1722109308397,5.5353,180.66,180.57,16.2626]
[1722109308715,1.64947919,180.66,180.57,16.2626]
[1722109309011,7.18497919,180.66,180.57,16.2626]
[1722109309214,1.64947919,180.66,180.57,16.2626]
[1722109310503,5.5333,180.73,180.57,16.2626]
[1722109310809,8.68349418,180.74,180.58,16.57]
[1722109311118,8.68349418,180.74,180.6,29.42]
[1722109311318,8.68349418,180.74,180.61,81.91]
[1722109312399,8.68349418,180.74,180.65,29.42]
[1722109312712,20.0,180.87,180.66,68.0662]
[1722109313012,1.64947919,180.86,180.66,88.0662]
[1722109313218,5.5294,180.85,180.66,88.0662]
[1722109313889,20.0,180.83,180.66,71.4962]
[1722109314090,20.0,180.81,180.66,71.4962]
[1722109314317,20.0,180.83,180.66,6.3262]
[1722109314521,20.0,180.85,180.67,0.17]
[1722109314815,1.64947919,180.82,180.67,0.17]
[1722109315020,5.5283,180.89,180.71,15.7231]
[1722109315201,5.5292,180.86,180.72,0.34]
[1722109315404,1.64947919,180.85,180.71,15.7231]
[1722109315717,5.5299,180.84,180.72,45.0]
[1722109316022,5.5305,180.82,180.72,45.0]
[1722109316191,1.64947919,180.84,180.72,45.0]
[1722109316397,7.17917919,180.84,180.72,45.0]
[1722109316702,1.64947919,180.84,180.72,45.0]
[1722109317513,1.64947919,180.84,180.73,0.17]
[1722109317815,5.53,180.83,180.72,45.0]
[1722109317994,1.64947919,180.82,180.71,15.7231]
[1722109319119,5.529,180.87,180.71,32.2931]
[1722109319317,20.0,180.9,180.72,20.0]
[1722109319623,5.5293,180.86,180.72,36.57]
[1722109319819,5.5288,180.87,180.73,45.34]
[1722109320201,21.64947919,180.89,180.73,45.34]
[1722109320525,1.64947919,180.88,180.73,45.17]
[1722109320720,1.64947919,180.88,180.75,29.42]
[1722109321029,1.64947919,180.88,180.76,45.34]
[1722109321345,1.64947919,180.88,180.76,0.34]
[1722109321515,5.5274,180.92,180.77,20.0]
[1722109321697,5.5276,180.91,180.78,45.34]
[1722109321903,26.0764,180.96,180.78,45.34]
[1722109321904,5.5274,180.92,180.78,45.34]
[1722109322426,20.0,180.92,180.78,45.0]
[1722109322627,20.0,180.85,180.66,35.5762]
[1722109322809,5.5309,180.81,180.66,35.5762]
[1722109323318,7.17947919,180.84,180.66,35.5762]
[1722109323623,1.64947919,180.84,180.67,16.57]
[1722109323812,1.64947919,180.84,180.72,16.57]
[1722109324015,20.0,180.91,180.72,16.57]
[1722109324016,5.5288,180.87,180.72,16.57]
[1722109324532,20.0,180.93,180.72,16.57]
[1722109324740,5.5282,180.9,180.72,16.57]
[1722109324911,5.5276,180.91,180.74,16.57]
[1722109325105,5.5276,180.91,180.75,65.34]
[1722109325305,1.64947919,180.92,180.75,65.34]
[1722109325725,1.64947919,180.92,180.75,81.91]
[1722109326230,5.5282,180.9,180.75,81.91]
[1722109326432,1.64947919,180.92,180.75,81.91]
[1722109326433,7.17697919,180.92,180.75,81.91]
[1722109326750,1.64947919,180.92,180.76,1.10565504]
[1722109327041,1.64947919,180.92,180.77,0.34]
[1722109327418,1.64947919,180.92,180.76,0.34]
[1722109327729,7.17697919,180.92,180.76,0.34]
[1722109327943,5.5276,180.91,180.76,0.34]
[1722109328106,1.64947919,180.92,180.76,0.34]
[1722109328311,1.64947919,180.92,180.77,6.1562]
[1722109328608,1.64947919,180.92,180.78,81.91]
[1722109328802,7.17687919,180.92,180.78,65.34]
[1722109329029,5.5281,180.9,180.78,20.34]
[1722109329317,5.5278,180.91,180.78,20.0]
[1722109329515,1.64947919,180.92,180.8,29.42]
[1722109329718,20.0,180.98,180.81,20.17]
[1722109329924,1.64947919,180.97,180.81,20.17]
[1722109330413,1.64947919,180.97,180.82,46.27544573]
[1722109330623,7.17547919,180.97,180.83,0.17]
[1722109330902,1.64947919,180.97,180.85,29.42]
[1722109331212,20.0,181.04,180.86,45.34]
[1722109331412,5.5256,180.98,180.86,65.0]
[1722109331639,5.526,180.96,180.86,65.0]
[1722109331808,5.5263,180.96,180.86,45.0]
[1722109332137,20.0,181.03,180.85,45.0]
[1722109332325,1.64947919,181.02,180.86,20.0]
[1722109332510,5.5246,181.01,180.87,51.6599]
[1722109332711,7.17407919,181.01,180.88,20.0]
[1722109332907,1.64947919,181.01,180.89,45.0]
[1722109333109,1.64947919,181.01,180.9,16.57]
[1722109333430,1.64947919,181.01,180.89,45.0]
[1722109333431,1.64947919,181.01,180.91,45.0]
[1722109333816,1.64947919,181.01,180.9,45.0]
[1722109334023,5.5248,181.0,180.9,45.0]
[1722109334223,5.5248,181.0,180.89,45.0]
[1722109334918,1.64947919,181.01,180.89,45.0]
[1722109335135,1.64947919,181.01,180.9,20.34]
[1722109335317,1.64947919,181.01,180.91,45.0]
[1722109335527,7.17397919,181.01,180.91,45.0]
[1722109335721,1.64947919,181.01,180.91,45.0]
[1722109336427,1.64947919,181.0,180.91,45.0]
[1722109336624,1.64947919,181.0,180.87,6.6599]
[1722109336625,5.5258,180.97,180.87,6.6599]
[1722109336828,1.64947919,180.97,180.87,6.6599]
[1722109337033,5.5271,180.93,180.81,6.6599]
[1722109337236,5.5267,180.94,180.81,6.6599]
[1722109337435,27.6199,181.03,180.81,6.6599]
[1722109337436,20.0,180.92,180.81,6.6599]
[1722109337643,21.64947919,180.92,180.81,6.6599]
[1722109337826,5.5279,180.9,180.81,6.6599]
[1722109338136,5.5279,180.9,180.77,16.031]
[1722109338137,5.5282,180.89,180.77,16.031]
[1722109338340,1.64947919,180.89,180.77,16.031]
[1722109339155,13.8117,181.01,180.77,32.601]
[1722109339156,5.5257,180.98,180.77,32.601]
[1722109339453,1.64947919,180.97,180.8,45.99]
[1722109339619,1.64947919,180.97,180.8,47.09534957]
[1722109339820,1.64947919,180.97,180.82,16.57]
[1722109340045,1.64947919,180.97,180.83,65.34]
[1722109341726,1.64947919,180.97,180.83,65.17]
[1722109341727,7.17547919,180.97,180.83,65.17]
[1722109341937,1.64947919,180.97,180.84,0.17]
[1722109342243,27.17517919,180.97,180.83,65.17]
[1722109342422,5.5261,180.96,180.83,65.17]
[1722109342627,5.5267,180.94,180.83,45.0]
[1722109342831,1.64947919,180.95,180.83,45.0]
[1722109343026,7.17577919,180.95,180.83,45.0]
[1722109343247,5.528,180.9,180.77,16.031]
[1722109343550,5.5288,180.87,180.77,16.031]
[1722109343924,7.17827919,180.87,180.77,16.031]
[1722109344119,1.64947919,180.87,180.77,16.031]
[1722109345944,1.64947919,180.87,180.78,45.0]
[1722109347547,1.64947919,180.87,180.77,16.031]
[1722109347754,20.0,180.85,180.71,16.031]
[1722109347927,20.0,180.82,180.71,16.031]
[1722109348127,1.64947919,180.81,180.71,16.031]
[1722109348347,7.18037919,180.81,180.71,16.031]
[1722109348544,1.64947919,180.81,180.71,16.031]
[1722109348753,1.64947919,180.81,180.69,6.6599]
[1722109349133,20.0,180.8,180.69,6.6599]
[1722109349354,20.0,180.76,180.65,16.031]
[1722109349549,1.64947919,180.79,180.65,16.031]
[1722109349550,5.5334,180.72,180.65,16.031]
[1722109350033,5.5331,180.73,180.65,16.031]
[1722109350361,1.64947919,180.72,180.59,16.031]
[1722109350734,1.64947919,180.72,180.59,32.601]
[1722109351055,7.18317919,180.72,180.59,32.601]
[1722109351258,20.0,180.71,180.59,16.031]
[1722109351556,1.64947919,180.7,180.55,29.42]
[1722109351728,1.64947919,180.7,180.56,16.57]
[1722109352758,25.5316,180.78,180.58,16.57]
[1722109352929,1.64947919,180.77,180.6,45.99]
[1722109353138,1.64947919,180.77,180.62,22.8946]
[1722109353139,21.64947919,180.77,180.62,22.8946]
[1722109353359,5.5323,180.76,180.63,61.74]
[1722109353530,21.64947919,180.77,180.63,61.74]
[1722109353728,1.64947919,180.77,180.63,61.74]
[1722109354036,1.64947919,180.77,180.66,16.57]
[1722109354434,1.64947919,180.77,180.67,45.0]
[1722109354849,1.64947919,180.77,180.66,45.0]
[1722109355257,20.0,180.73,180.62,6.3246]
[1722109355440,20.0,180.73,180.58,16.2386]
[1722109355441,20.0,180.71,180.58,16.2386]
[1722109355647,5.5347,180.68,180.58,16.2386]
[1722109355968,1.64947919,180.7,180.58,16.2386]
[1722109356331,21.64947919,180.7,180.58,16.2386]
[1722109356555,21.64947919,180.7,180.58,32.8086]
[1722109356860,1.64947919,180.7,180.58,32.8086]
[1722109357233,20.0,180.75,180.58,32.8086]
[1722109357430,5.5343,180.7,180.58,16.2386]
[1722109357644,20.0,180.72,180.58,16.2386]
[1722109357850,1.64947919,180.71,180.59,45.0]
[1722109358058,5.5325,180.75,180.59,61.57]
[1722109358358,20.0,180.77,180.59,61.57]
[1722109358556,5.5328,180.74,180.61,16.57]
[1722109358857,7.18187919,180.76,180.62,61.57]
[1722109359157,1.64947919,180.76,180.62,61.57]
[1722109359355,20.0,180.82,180.64,16.57]
[1722109359556,7.18007919,180.81,180.66,16.57]
[1722109359734,1.64947919,180.81,180.67,0.34]
[1722109359935,20.0,180.78,180.67,45.0]
[1722109360131,27.645,180.87,180.67,45.0]